bitfinex-derivatives/quotes_SOLF0:USTF0_20220110
["timestamp","ask_amount","ask_price","bid_price","bid_amount"]
[1641848011073,27.66479,134.91,134.8,31.66479]
[1641848011273,29.51779,134.94,134.84,27.66479]
[1641848011476,31.66479,134.94,134.84,27.66479]
[1641848011675,1.853,134.93,134.84,27.66479]
[1641848012273,27.66479,134.96,134.84,33.51779]
[1641848012474,27.66479,134.96,134.85,20.0]
[1641848012674,4.0,134.94,134.84,29.51779]
[1641848012875,1.853,134.95,134.84,27.66479]
[1641848013276,1.853,134.95,134.84,55.32958]
[1641848014881,1.853,134.95,134.84,59.32958]
[1641848015081,1.853,134.96,134.87,4.0]
[1641848015281,4.19724056,134.92,134.9,24.0]
[1641848015481,1.853,135.02,134.91,4.0]
[1641848015681,1.853,135.02,134.92,4.0]
[1641848015881,1.852,135.04,134.92,4.0]
[1641848016081,29.51679,135.05,134.91,1.852]
[1641848016281,4.0,135.03,134.87,1.852]
[1641848016481,1.852,135.02,134.87,25.852]
[1641848016683,11.77643047,135.04,134.87,34.10018066]
[1641848016881,7.77643047,135.04,134.87,34.10018066]
[1641848017082,11.77643047,135.04,134.89,4.0]
[1641848017281,11.77643047,135.04,134.94,27.66479]
[1641848018383,7.77643047,135.04,134.94,27.66479]
[1641848018584,1.852,135.04,134.94,27.66479]
[1641848019484,5.852,135.04,134.94,27.66479]
[1641848019684,1.852,135.04,134.94,27.66479]
[1641848019883,4.19544307,135.01,134.94,27.66479]
[1641848021986,4.19544307,135.01,134.95,2.68378642]
[1641848023186,4.19489508,135.03,134.95,2.68378642]
[1641848023988,5.92570779,135.01,134.95,2.68378642]
[1641848024188,5.92570779,135.01,134.87,27.11790186]
[1641848024189,4.0,134.99,134.87,1.852]
[1641848024490,9.92703473,134.98,134.87,1.852]
[1641848024687,1.852,134.97,134.84,20.0]
[1641848025388,29.51679,134.97,134.96,2.68375057]
[1641848025589,29.51679,134.97,134.96,5.057e-05]
[1641848025888,27.66479,134.99,134.87,1.852]
[1641848026088,27.66479,134.99,134.86,37.59649546]
[1641848026288,27.66479,134.99,134.86,33.59649546]
[1641848026490,27.66479,134.99,134.86,37.59649546]
[1641848026690,1.852,134.98,134.86,33.59649546]
[1641848026890,4.0,134.97,134.87,2.49242625]
[1641848027094,1.852,134.96,134.87,2.49242625]
[1641848027491,29.51679,134.96,134.87,2.49242625]
[1641848027793,29.51679,134.96,134.86,31.66479]
[1641848028195,27.66479,134.96,134.86,27.66479]
[1641848028796,27.66479,134.96,134.87,2.49251485]
[1641848030295,27.66479,134.96,134.86,27.66479]
[1641848030497,4.0,134.94,134.86,27.66479]
[1641848030697,1.853,134.94,134.86,27.66479]
[1641848030896,5.853,134.94,134.84,27.66479]
[1641848031298,1.853,134.94,134.84,27.66479]
[1641848031498,27.66479,134.93,134.84,27.66479]
[1641848031699,1.853,134.92,134.84,27.66479]
[1641848032099,1.853,134.92,134.85,2.50136625]
[1641848033101,5.93012403,134.91,134.81,43.21390838]
[1641848033302,5.853,134.9,134.81,43.21390838]
[1641848033503,4.0,134.89,134.81,43.21390838]
[1641848033702,5.853,134.88,134.81,15.54911838]
[1641848033901,1.853,134.88,134.82,2.50158931]
[1641848034503,5.853,134.88,134.82,2.50158931]
[1641848034904,5.853,134.88,134.8,15.54911838]
[1641848035303,4.0,134.87,134.8,15.54911838]
[1641848035505,27.66479,134.86,134.8,15.54911838]
[1641848035706,4.0,134.81,134.8,0.74111838]
[1641848035906,4.0,134.85,134.77,41.62105827]
[1641848036106,1.854,134.8,134.77,41.62105827]
[1641848036306,5.93393021,134.82,134.77,41.62105827]
[1641848036606,7.78793021,134.82,134.77,41.62105827]
[1641848036811,1.854,134.85,134.75,4.0]
[1641848037006,27.66479,134.86,134.75,4.0]
[1641848037206,4.0,134.88,134.75,5.93680759]
[1641848037407,5.854,134.89,134.75,5.93680759]
[1641848037609,27.66479,134.87,134.79,27.66479]
[1641848038207,1.854,134.89,134.79,27.66479]
[1641848038409,27.66479,134.9,134.79,27.66479]
[1641848039409,4.2001564,134.84,134.79,27.66479]
[1641848039910,4.2001564,134.84,134.79,37.80299951]
[1641848040508,27.66479,134.9,134.79,37.80299951]
[1641848040708,29.51779,134.93,134.79,31.66479]
[1641848040908,27.66479,134.93,134.8,1.853]
[1641848041108,1.853,134.92,134.79,33.51779]
[1641848041410,1.853,134.92,134.8,24.0]
[1641848041610,1.853,134.92,134.84,27.66479]
[1641848043509,1.853,134.94,134.91,27.66479]
[1641848044013,27.66479,134.99,134.91,27.66479]
[1641848044709,27.66479,135.01,134.91,27.66479]
[1641848045111,1.852,135.04,134.91,51.66479]
[1641848045310,1.852,135.06,134.92,1.852]
[1641848045509,27.66479,135.05,134.95,27.66479]
[1641848045710,31.66479,135.05,134.95,27.66479]
[1641848046508,31.66479,135.05,134.92,1.852]
[1641848046509,4.0,135.02,134.92,1.852]
[1641848046708,4.0,135.01,134.91,27.66479]
[1641848046909,1.852,135.0,134.91,27.66479]
[1641848047510,27.66479,135.01,134.91,27.66479]
[1641848047711,1.852,135.0,134.91,27.66479]
[1641848047909,27.66479,135.01,134.91,27.66479]
[1641848048111,1.852,135.0,134.91,27.66479]
[1641848048510,1.852,135.0,134.89,27.66479]
[1641848048711,1.852,135.0,134.92,2.4392101]
[1641848048911,1.852,135.03,134.92,6.4392101]
[1641848049111,1.852,135.04,134.92,4.2912101]
[1641848049311,27.66479,135.05,134.92,8.2912101]
[1641848049511,27.66479,135.05,134.99,27.66479]
[1641848049911,5.852,135.06,134.99,27.66479]
[1641848050112,1.852,135.06,134.99,27.66479]
[1641848050511,4.0,135.07,134.99,27.66479]
[1641848050712,29.51579,135.09,134.99,27.66479]
[1641848051714,1.851,135.09,134.99,27.66479]
[1641848051914,1.851,135.1,135.03,4.0]
[1641848052115,1.851,135.1,135.02,4.0]
[1641848052317,41.62105827,135.15,135.04,20.0]
[1641848052918,1.85,135.14,135.04,20.0]
[1641848053117,4.0,135.17,135.04,20.0]
[1641848053317,1.85,135.16,135.01,25.85]
[1641848053516,1.85,135.16,135.03,20.0]
[1641848053720,27.66479,135.17,135.07,27.66479]
[1641848053917,1.85,135.16,135.07,27.66479]
[1641848055021,11.76906751,135.16,135.05,27.66479]
[1641848055421,4.0,135.14,135.05,27.66479]
[1641848055622,1.85,135.13,135.03,20.0]
[1641848055819,1.85,135.13,135.03,22.43718459]
[1641848056620,1.85,135.13,135.03,26.43718459]
[1641848056820,27.66479,135.14,135.04,1.85]
[1641848057419,27.66479,135.14,135.04,5.85]
[1641848057620,27.66479,135.14,135.04,1.85]
[1641848058021,27.66479,135.14,135.03,22.43718459]
[1641848058719,29.51479,135.14,135.03,22.43718459]
[1641848059119,29.51479,135.14,135.03,20.0]
[1641848059722,29.51479,135.14,135.04,2.4370212]
[1641848060524,4.19220271,135.13,135.04,2.4370212]
[1641848061624,4.19220271,135.13,135.08,27.66479]
[1641848062625,4.19220271,135.13,135.09,20.0]
[1641848062825,1.85,135.21,135.09,20.0]
[1641848063026,1.85,135.21,135.08,31.66479]
[1641848063027,1.85,135.21,135.12,20.0]
[1641848063228,1.85,135.23,135.12,20.0]
[1641848063426,1.849,135.24,135.12,20.0]
[1641848063626,1.849,135.24,135.17,27.66479]
[1641848063826,33.51379,135.25,135.17,27.66479]
[1641848064727,29.51379,135.25,135.17,27.66479]
[1641848064929,1.848,135.26,135.17,47.66479]
[1641848065127,27.66479,135.27,135.17,27.66479]
[1641848065327,27.66479,135.27,135.17,47.66479]
[1641848065531,27.66479,135.27,135.17,51.66479]
[1641848065827,27.66479,135.27,135.2,27.66479]
[1641848066428,27.66479,135.27,135.2,47.66479]
[1641848066629,1.848,135.3,135.2,47.66479]
[1641848066829,27.66479,135.31,135.2,47.66479]
[1641848067029,27.66479,135.31,135.2,51.66479]
[1641848067331,1.848,135.32,135.23,20.0]
[1641848067530,15.42191613,135.33,135.23,20.0]
[1641848067731,44.93470613,135.34,135.26,20.0]
[1641848067934,43.08670613,135.34,135.26,20.0]
[1641848068535,43.08670613,135.34,135.25,27.66479]
[1641848068936,27.66479,135.34,135.25,27.66479]
[1641848069133,27.66479,135.34,135.23,21.847]
[1641848069335,21.49957914,135.26,135.21,1.847]
[1641848069736,21.49957914,135.26,135.2,27.66479]
[1641848070739,21.49957914,135.26,135.2,31.66479]
[1641848070936,21.49957914,135.26,135.2,27.66479]
[1641848072236,21.49957914,135.26,135.15,20.0]
[1641848072237,4.0,135.25,135.13,1.848]
[1641848072438,5.9155387,135.24,135.12,20.0]
[1641848072639,1.849,135.23,135.08,1.849]
[1641848073239,1.849,135.23,135.1,20.0]
[1641848073439,1.849,135.23,135.1,29.92132209]
[1641848073643,27.66479,135.23,135.12,27.66479]
[1641848074340,27.66479,135.23,135.13,20.0]
[1641848074942,27.66479,135.23,135.13,24.0]
[1641848075341,27.66479,135.23,135.14,4.0]
[1641848075541,27.66479,135.23,135.14,1.849]
[1641848076744,1.849,135.27,135.17,20.0]
[1641848076941,1.849,135.31,135.2,24.0]
[1641848077141,1.849,135.31,135.26,20.0]
[1641848077342,64.13585872,135.35,135.22,20.0]
[1641848077343,1.848,135.34,135.22,20.0]
[1641848077741,1.848,135.34,135.25,27.66479]
[1641848078344,5.848,135.34,135.25,27.66479]
[1641848078542,1.848,135.34,135.25,27.66479]
[1641848080146,5.848,135.34,135.25,27.66479]
[1641848080548,4.0,135.32,135.23,27.66479]
[1641848080747,1.848,135.31,135.23,27.66479]
[1641848081149,5.848,135.34,135.23,27.66479]
[1641848082048,1.848,135.34,135.23,27.66479]
[1641848082249,5.848,135.34,135.23,27.66479]
[1641848082649,1.848,135.34,135.23,27.66479]
[1641848082849,1.848,135.34,135.23,31.66479]
[1641848083050,27.66479,135.35,135.25,20.0]
[1641848083350,27.66479,135.35,135.26,1.847]
[1641848083749,27.66479,135.35,135.28,27.66479]
[1641848086154,29.51179,135.37,135.29,20.0]
[1641848086351,27.66479,135.37,135.28,27.66479]
[1641848086952,27.66479,135.37,135.29,20.0]
[1641848087353,17.26891613,135.41,135.34,20.0]
[1641848087552,15.42191613,135.41,135.34,20.0]
[1641848087952,15.42191613,135.42,135.36,27.66479]
[1641848088153,4.0,135.4,135.29,1.846]
[1641848088353,4.0,135.39,135.28,7.09608246]
[1641848088554,4.0,135.35,135.24,1.847]
[1641848088754,1.847,135.34,135.2,1.847]
[1641848088952,1.847,135.34,135.22,20.0]
[1641848089153,4.0,135.36,135.22,25.848]
[1641848089352,5.848,135.36,135.22,25.848]
[1641848089553,1.848,135.36,135.22,29.91612265]
[1641848089752,4.0,135.37,135.23,1.847]
[1641848089954,27.66479,135.34,135.26,27.66479]
[1641848090153,27.66479,135.34,135.29,3.31042745]
[1641848090755,1.847,135.38,135.29,3.31042745]
[1641848090959,1.847,135.39,135.29,23.31042745]
[1641848091155,45.62105827,135.44,135.29,3.31042745]
[1641848091156,4.0,135.42,135.29,3.31042745]
[1641848091359,1.847,135.4,135.29,3.31042745]
[1641848091557,5.847,135.4,135.29,3.31042745]
[1641848091957,27.66479,135.39,135.32,27.66479]
[1641848093258,31.66479,135.39,135.32,27.66479]
[1641848093459,4.0,135.38,135.32,27.66479]
[1641848093861,1.847,135.37,135.32,27.66479]
[1641848094262,1.847,135.37,135.3,3.31102009]
[1641848094461,1.847,135.38,135.3,3.31102009]
[1641848094660,4.0,135.32,135.24,1.846]
[1641848094860,1.848,135.31,135.2,15.42191613]
[1641848095461,4.0,135.3,135.19,1.847]
[1641848095661,5.848,135.29,135.16,17.26991613]
[1641848095864,33.51279,135.29,135.22,27.66479]
[1641848096462,33.51279,135.29,135.2,27.66479]
[1641848096662,29.51279,135.29,135.2,27.66479]
[1641848096863,4.0,135.27,135.15,1.848]
[1641848097062,5.848,135.26,135.13,15.42191613]
[1641848097261,4.0,135.25,135.13,15.42191613]
[1641848097462,1.849,135.24,135.12,15.42191613]
[1641848097662,1.849,135.27,135.12,19.42191613]
[1641848097863,27.66479,135.26,135.19,27.66479]
[1641848098162,1.849,135.28,135.19,27.66479]
[1641848098862,5.849,135.28,135.19,27.66479]
[1641848099065,4.0,135.27,135.19,27.66479]
[1641848099263,1.848,135.26,135.19,27.66479]
[1641848099465,5.848,135.27,135.19,27.66479]
[1641848099666,1.848,135.27,135.19,27.66479]
[1641848100068,27.66479,135.25,135.19,27.66479]
[1641848100267,4.0,135.23,135.17,2.58459302]
[1641848100467,5.848,135.24,135.17,2.58459302]
[1641848101265,1.848,135.24,135.17,2.58459302]
[1641848102066,15.42191613,135.27,135.19,27.66479]
[1641848102267,6.03698878,135.28,135.19,27.66479]
[1641848102466,4.18798878,135.28,135.19,27.66479]
[1641848102666,29.51279,135.29,135.19,27.66479]
[1641848102866,4.18867042,135.26,135.2,2.58525131]
[1641848105267,4.18867042,135.26,135.2,6.58525131]
[1641848105667,4.18867042,135.26,135.2,4.43325131]
[1641848105868,7.042e-05,135.26,135.21,1.848]
[1641848106068,7.042e-05,135.26,135.24,27.66479]
[1641848106267,15.42191613,135.31,135.24,27.66479]
[1641848106467,29.51279,135.33,135.24,27.66479]
[1641848106667,4.18831399,135.25,135.24,27.66479]
[1641848107469,4.18831399,135.25,135.21,1.92272239]
[1641848108070,4.18831399,135.25,135.24,27.66479]
[1641848108472,1.848,135.32,135.24,27.66479]
[1641848109374,5.848,135.32,135.24,27.66479]
[1641848109577,1.848,135.32,135.24,27.66479]
[1641848110271,43.08670613,135.35,135.28,27.66479]
[1641848111277,1.848,135.36,135.28,27.66479]
[1641848111474,15.42191613,135.37,135.29,20.0]
[1641848111675,41.62105827,135.4,135.32,20.0]
[1641848111883,41.62105827,135.4,135.35,24.0]
[1641848112173,5.827e-05,135.4,135.39,55.32958]
[1641848112574,10.63379941,135.45,135.39,55.32958]
[1641848114179,10.63374114,135.45,135.39,55.32958]
[1641848114383,10.63374114,135.45,135.39,75.32958]
[1641848114581,13.31734669,135.48,135.39,75.32958]
[1641848114780,13.31734669,135.48,135.4,1.845]
[1641848114981,13.31734669,135.48,135.4,5.845]
[1641848115380,13.31734669,135.48,135.42,20.0]
[1641848115580,2.68360555,135.51,135.42,21.845]
[1641848115980,2.68360555,135.51,135.42,20.0]
[1641848116179,2.68360555,135.51,135.47,27.66479]
[1641848116381,4.0,135.5,135.4,1.845]
[1641848116580,5.845,135.5,135.36,24.0]
[1641848116984,1.845,135.5,135.36,24.0]
[1641848117181,4.0,135.49,135.36,24.0]
[1641848117381,1.846,135.48,135.36,24.0]
[1641848117982,5.846,135.52,135.4,2.83814644]
[1641848118182,27.66479,135.5,135.42,27.66479]
[1641848118383,4.0,135.47,135.42,27.66479]
[1641848119282,7.74983085,135.49,135.42,27.66479]
[1641848119484,4.0,135.43,135.4,2.83814644]
[1641848119682,5.846,135.42,135.29,1.845]
[1641848119882,1.846,135.42,135.29,1.845]
[1641848120083,1.846,135.42,135.28,1.846]
[1641848120282,5.846,135.42,135.35,27.66479]
[1641848120483,4.0,135.42,135.35,27.66479]
[1641848120986,33.51179,135.44,135.37,3.67564592]
[1641848121385,29.51179,135.44,135.37,3.67564592]
[1641848121584,1.846,135.47,135.37,3.67564592]
[1641848121784,37.56901605,135.5,135.37,3.67564592]
[1641848121785,5.845,135.49,135.37,3.67564592]
[1641848121988,4.0,135.44,135.37,3.67564592]
[1641848122285,4.0,135.43,135.37,3.67564592]
[1641848122486,1.846,135.42,135.37,3.67564592]
[1641848123488,5.846,135.42,135.37,3.67564592]
[1641848123688,4.0,135.42,135.37,3.67564592]
[1641848124389,5.846,135.43,135.35,27.66479]
[1641848124789,5.846,135.43,135.38,3.64877942]
[1641848124989,1.846,135.43,135.38,3.64877942]
[1641848125389,5.846,135.43,135.38,3.64877942]
[1641848127392,4.0,135.42,135.38,3.64877942]
[1641848127594,4.0,135.42,135.35,27.66479]
[1641848127795,4.0,135.42,135.33,27.66479]
[1641848127796,4.0,135.39,135.27,21.846]
[1641848127991,4.0,135.39,135.27,20.0]
[1641848128192,4.0,135.38,135.3,27.66479]
[1641848128393,4.0,135.34,135.3,27.66479]
[1641848128593,4.0,135.34,135.28,27.66479]
[1641848128993,5.847,135.33,135.28,27.66479]
[1641848129193,4.0,135.3,135.28,27.66479]
[1641848129393,11.75790965,135.35,135.19,1.847]
[1641848129893,1.847,135.35,135.22,4.0]
[1641848130096,1.847,135.38,135.23,25.847]
[1641848130293,1.847,135.38,135.29,27.66479]
[1641848130494,29.51179,135.39,135.29,27.66479]
[1641848130696,1.847,135.4,135.29,51.66479]
[1641848130895,7.75523387,135.41,135.29,51.66479]
[1641848131096,1.847,135.41,135.3,4.0]
[1641848131295,1.847,135.41,135.29,51.66479]
[1641848131696,1.847,135.42,135.29,51.66479]
[1641848131896,22.08558817,135.37,135.29,51.66479]
[1641848132099,22.08558817,135.37,135.3,4.0]
[1641848132299,22.08558817,135.37,135.34,27.66479]
[1641848133901,8.817e-05,135.37,135.34,27.66479]
[1641848134300,8.817e-05,135.37,135.35,27.66479]
[1641848135303,27.66479,135.47,135.35,29.51079]
[1641848135703,29.51079,135.47,135.35,27.66479]
[1641848135902,29.51079,135.47,135.35,29.97963811]
[1641848136104,6.68590058,135.46,135.35,29.97963811]
[1641848136304,1.846,135.45,135.35,29.97963811]
[1641848137307,1.846,135.46,135.35,29.97963811]
[1641848137506,1.846,135.46,135.35,49.97963811]
[1641848137907,2.6878039,135.45,135.35,49.97963811]
[1641848138407,2.6878039,135.45,135.39,27.66479]
[1641848139007,33.51079,135.47,135.39,27.66479]
[1641848139008,6.6878039,135.46,135.39,27.66479]
[1641848139208,1.846,135.45,135.39,27.66479]
[1641848139610,4.5338039,135.45,135.39,27.66479]
[1641848139812,2.6878039,135.45,135.39,27.66479]
[1641848140311,2.6878039,135.44,135.39,27.66479]
[1641848140712,4.5338039,135.44,135.39,27.66479]
[1641848140915,2.6878039,135.44,135.39,27.66479]
[1641848141113,1.846,135.43,135.39,27.66479]
[1641848141513,5.846,135.43,135.39,27.66479]
[1641848141914,2.6878039,135.42,135.4,2.31412108]
[1641848142514,1.846,135.41,135.35,27.66479]
[1641848142714,7.75406062,135.41,135.35,27.66479]
[1641848143315,4.0,135.4,135.35,27.66479]
[1641848143515,1.846,135.39,135.35,27.66479]
[1641848143916,5.846,135.39,135.35,27.66479]
[1641848144718,2.6878039,135.38,135.26,41.51400831]
[1641848144919,1.847,135.37,135.26,41.51400831]
[1641848145217,1.847,135.37,135.26,15.59954667]
[1641848145417,1.847,135.37,135.27,2.50399858]
[1641848145617,4.0,135.36,135.27,9.16799858]
[1641848146319,1.847,135.37,135.36,4.18426203]
[1641848146520,15.59954667,135.38,135.36,12.35526203]
[1641848146720,16.84348635,135.38,135.36,12.35526203]
[1641848147120,1.24393968,135.38,135.36,12.35526203]
[1641848147523,15.59954667,135.42,135.36,12.35526203]
[1641848148221,15.59954667,135.45,135.36,12.35526203]
[1641848148622,15.59954667,135.45,135.4,27.66479]
[1641848148821,15.59954667,135.45,135.4,35.12979]
[1641848149022,146.67507086,135.48,135.4,35.12979]
[1641848149023,15.59954667,135.44,135.4,35.12979]
[1641848149822,15.59954667,135.45,135.4,35.12979]
[1641848151626,15.59954667,135.44,135.4,35.12979]
[1641848152226,16.46949212,135.44,135.4,35.12979]
[1641848152630,16.46949212,135.44,135.41,4.1826889]
[1641848153229,2.69803022,135.43,135.41,4.1826889]
[1641848154732,4.0,135.42,135.41,4.1826889]
[1641848154935,1.846,135.42,135.36,8.171]
[1641848155139,1.846,135.42,135.31,15.59954667]
[1641848155333,20.14357689,135.42,135.31,4.0]
[1641848155535,18.29757689,135.42,135.31,4.0]
[1641848155737,22.29757689,135.42,135.3,10.98]
[1641848156134,2.69803022,135.42,135.32,2.50447229]
[1641848156336,2.69803022,135.42,135.32,9.52947229]
[1641848156735,2.69803022,135.42,135.35,27.66479]
[1641848157034,20.14357689,135.42,135.35,33.88479]
[1641848158134,2.69803022,135.41,135.35,33.88479]
[1641848158735,2.69803022,135.41,135.39,27.66479]
[1641848158934,15.59954667,135.44,135.39,35.07179]
[1641848159134,2.12552516,135.41,135.39,35.07179]
[1641848159334,2.516e-05,135.41,135.39,35.07179]
[1641848160735,2.516e-05,135.41,135.4,27.66479]
[1641848161350,2.516e-05,135.41,135.39,27.66479]
[1641848161535,8.99302516,135.41,135.35,15.59954667]
[1641848161736,1.846,135.4,135.35,15.59954667]
[1641848162135,1.846,135.4,135.33,15.59954667]
[1641848162736,1.846,135.4,135.34,27.66479]
[1641848162937,2.70052978,135.39,135.34,27.66479]
[1641848163736,19.59954667,135.41,135.34,27.66479]
[1641848163937,1.846,135.4,135.34,36.24779]
[1641848164740,1.846,135.41,135.34,36.24779]
[1641848165139,15.59954667,135.42,135.34,36.24779]
[1641848165539,2.70132932,135.4,135.34,40.24779]
[1641848165937,2.70132932,135.4,135.34,36.24779]
[1641848166341,2.70132932,135.4,135.34,40.24779]
[1641848166744,0.86184588,135.45,135.39,27.66479]
[1641848166942,0.86184588,135.45,135.39,36.39579]
[1641848168149,2.70091511,135.44,135.39,36.39579]
[1641848168946,15.59954667,135.45,135.39,36.39579]
[1641848169546,19.59954667,135.45,135.39,36.39579]
[1641848169747,2.70091511,135.45,135.39,36.39579]
[1641848170449,15.59954667,135.45,135.39,36.39579]
[1641848170852,1.846,135.44,135.39,36.39579]
[1641848171049,19.59954667,135.45,135.39,36.39579]
[1641848171250,15.59954667,135.43,135.39,36.39579]
[1641848171451,19.59954667,135.43,135.4,4.18241347]
[1641848171649,4.0,135.42,135.4,4.18241347]
[1641848172050,6.70091511,135.42,135.4,4.18241347]
[1641848172450,2.70091511,135.42,135.4,4.18241347]
[1641848173153,2.70091511,135.43,135.4,4.18241347]
[1641848174152,15.59954667,135.46,135.4,4.18241347]
[1641848174955,19.59954667,135.46,135.4,4.18241347]
[1641848175157,18.30046178,135.46,135.4,4.18241347]
[1641848175356,18.30046178,135.46,135.39,36.39579]
[1641848175556,20.14646178,135.46,135.41,4.18362668]
[1641848175758,15.59954667,135.45,135.41,4.18362668]
[1641848176557,18.30046178,135.45,135.41,4.18362668]
[1641848177158,2.70091511,135.45,135.41,4.18362668]
[1641848178260,8.54591511,135.45,135.41,4.18362668]
[1641848178458,4.0,135.43,135.41,4.18362668]
[1641848178860,4.0,135.43,135.39,27.66479]
[1641848179058,4.0,135.43,135.42,4.18275363]
[1641848179258,5.846,135.43,135.42,4.18275363]
[1641848179459,1.846,135.43,135.42,4.18275363]
[1641848179660,1.846,135.43,135.42,13.53175363]
[1641848180061,17.44554667,135.43,135.42,13.53175363]
[1641848180261,15.59954667,135.43,135.42,13.53175363]
[1641848180460,19.59954667,135.43,135.42,5.363e-05]
[1641848180662,4.0,135.43,135.35,15.59954667]
[1641848180864,4.0,135.42,135.35,15.59954667]
[1641848181761,4.0,135.42,135.35,2.50983475]
[1641848182162,15.59954667,135.43,135.35,2.50983475]
[1641848182363,15.59954667,135.43,135.35,11.76283475]
[1641848182563,15.59954667,135.43,135.4,4.18325137]
[1641848182762,15.59954667,135.43,135.4,39.42104137]
[1641848183162,56.95162753,135.46,135.4,39.42104137]
[1641848183364,15.59954667,135.46,135.4,39.42104137]
[1641848183563,1.4869766,135.43,135.4,39.42104137]
[1641848185663,1.4869766,135.43,135.4,35.23779]
[1641848186464,1.4869766,135.43,135.41,4.18226545]
[1641848187066,1.90451418,135.45,135.41,4.18226545]
[1641848187466,1.90451418,135.45,135.41,8.18226545]
[1641848187666,15.59954667,135.46,135.41,8.18226545]
[1641848187866,15.59954667,135.46,135.41,4.18226545]
[1641848188267,10.6817092,135.47,135.42,4.0]
[1641848188467,9.2e-06,135.47,135.42,8.3535588]
[1641848188666,15.6336014,135.49,135.42,8.3535588]
[1641848188866,15.6336014,135.49,135.47,27.66479]
[1641848189066,15.6336014,135.49,135.47,36.27279]
[1641848189767,45.35208086,135.52,135.47,36.27279]
[1641848189966,4.0,135.52,135.47,36.27279]
[1641848190368,4.0,135.53,135.47,36.27279]
[1641848190569,4.0,135.54,135.47,36.27279]
[1641848192271,4.0,135.52,135.45,27.66479]
[1641848192472,4.0,135.49,135.42,19.05892478]
[1641848192671,6.236,135.49,135.42,19.05892478]
[1641848192872,29.50979,135.48,135.42,19.05892478]
[1641848193072,32.05941505,135.48,135.42,19.05892478]
[1641848193273,2.54962505,135.48,135.42,19.05892478]
[1641848193872,2.54962505,135.48,135.42,14.87644669]
[1641848194871,2.54962505,135.48,135.47,27.66479]
[1641848195073,2.54962505,135.48,135.47,33.97479]
[1641848195272,2.54962505,135.48,135.47,6.31]
[1641848196175,5.24470633,135.48,135.47,6.31]
[1641848196372,2.69508128,135.48,135.44,6.687]
[1641848196575,2.69508128,135.48,135.41,27.66479]
[1641848196775,2.69508128,135.49,135.45,27.66479]
[1641848196974,2.1693683,135.47,135.45,35.06579]
[1641848198776,2.1693683,135.47,135.46,27.66479]
[1641848198976,45.35208086,135.54,135.46,27.66479]
[1641848199176,4.0,135.54,135.46,27.66479]
[1641848199378,9.90284186,135.53,135.46,27.66479]
[1641848199779,1.845,135.52,135.46,27.66479]
[1641848200277,8.53786165,135.52,135.46,27.66479]
[1641848200878,2.69286165,135.51,135.49,27.66479]
[1641848201079,2.69286165,135.51,135.49,34.89479]
[1641848202379,6.69286165,135.51,135.49,34.89479]
[1641848202580,6.69286165,135.51,135.46,27.66479]
[1641848202779,1.845,135.5,135.46,27.66479]
[1641848203181,6.69286165,135.51,135.46,27.66479]
[1641848203481,2.69286165,135.49,135.46,34.83379]
[1641848204083,2.69286165,135.51,135.46,34.83379]
[1641848207682,2.69286165,135.51,135.46,7.169]
[1641848207881,2.69286165,135.51,135.43,27.66479]
[1641848208082,1.845,135.5,135.43,27.66479]
[1641848208483,5.845,135.5,135.43,27.66479]
[1641848208684,4.0,135.49,135.43,27.66479]
[1641848208883,5.845,135.48,135.43,27.66479]
[1641848209086,4.0,135.47,135.43,27.66479]
[1641848209284,7.75087812,135.46,135.43,27.66479]